[Event "12th Philadelphia Open"]
[Site "Philadelphia"]
[Date "2018.03.29"]
[Round "2.4"]
[White "Azarov, Sergei"]
[Black "Li, Ben"]
[Result "1-0"]
[ECO "C96"]
[WhiteElo "2570"]
[BlackElo "2347"]
[PlyCount "137"]
[EventDate "2018.03.??"]
[EventType "swiss"]
[EventRounds "9"]
[EventCountry "USA"]
[TimeControl "5400+30"]
[WhiteClock "0:00:19"]
[BlackClock "0:00:02"]

1. e4 {[%emt 0:00:00]} e5 {[%emt 0:00:00]} 2. Nf3 {[%emt 0:00:00]} Nc6 {
[%emt 0:00:00]} 3. Bb5 {[%emt 0:00:00]} a6 {[%emt 0:00:00]} 4. Ba4 {[%emt 0:00:
00]} Nf6 {[%emt 0:00:00]} 5. O-O {[%emt 0:00:00]} Be7 {[%emt 0:00:00]} 6. Re1 {
[%emt 0:00:00]} b5 {[%emt 0:00:00]} 7. Bb3 {[%emt 0:00:00]} d6 {[%emt 0:00:00]}
8. c3 {[%emt 0:00:00]} O-O {[%emt 0:00:00]} 9. h3 {[%emt 0:00:00]} Na5 {
[%emt 0:00:00]} 10. Bc2 {[%emt 0:00:00]} c5 {[%emt 0:00:00]} 11. d4 {[%emt 0:
00:00]} cxd4 12. cxd4 {[%emt 0:00:00]} Re8 {[%emt 0:00:00]} 13. d5 {[%emt 0:00:
00]} Bd7 {[%emt 0:00:00]} 14. Nbd2 {[%emt 0:00:00]} Qc7 {[%emt 0:00:00]} 15.
Nf1 {[%emt 0:00:00]} Rec8 {[%emt 0:00:00]} 16. Bd3 {[%emt 0:00:00]} Nb7 {
[%emt 0:00:00]} 17. Bd2 {[%emt 0:12:53]} Nc5 {[%emt 0:00:00]} 18. Rc1 {[%emt 0:
00:47]} Qd8 {[%emt 0:00:00]} 19. Bb1 {[%emt 0:02:23]} a5 {[%emt 0:00:00]} 20.
b3 {[%emt 0:03:02]} g6 {[%emt 0:26:54]} 21. Ng3 {[%emt 0:00:30]} Bf8 {[%emt 0:
04:06]} 22. Be3 {[%emt 0:09:48]} Qb6 {[%emt 0:01:22]} 23. Re2 {[%emt 0:07:08]}
Be8 {[%emt 0:09:23]} 24. Bd3 {[%emt 0:05:35]} Nfd7 {[%emt 0:22:15]} 25. Rec2 {
[%emt 0:01:24]} Qb7 {[%emt 0:00:35]} 26. Be2 {[%emt 0:04:54]} b4 {[%emt 0:04:
37]} 27. Qf1 {[%emt 0:04:53]} Rcb8 {[%emt 0:02:58]} 28. Bxc5 {[%emt 0:07:59]}
Nxc5 {[%emt 0:00:59]} 29. Rxc5 {[%emt 0:00:59]} dxc5 {[%emt 0:00:30]} 30. Nxe5
{[%emt 0:00:34]} a4 {[%emt 0:10:21]} 31. Bc4 {[%emt 0:09:39]} axb3 {[%emt 0:01:
27]} 32. Bxb3 {[%emt 0:02:31]} Bb5 {[%emt 0:03:27]} 33. Nc4 {[%emt 0:03:40]}
Bg7 {[%emt 0:04:50]} 34. Qd1 {[%emt 0:08:52]} Rd8 {[%emt 0:01:49]} 35. f4 {
[%emt 0:04:50]} Bd4+ {[%emt 0:06:15]} 36. Kh1 {[%emt 0:00:36]} Rab8 {[%emt 0:
01:52]} 37. Qf3 {[%emt 0:01:50]} h5 {[%emt 0:02:01]} 38. f5 {[%emt 0:03:25]}
Bxc4 {[%emt 0:00:53]} 39. Bxc4 {[%emt 0:00:45]} Kg7 {[%emt 0:01:36]} 40. Ne2 {
[%emt 0:04:49]} Be5 {[%emt 0:01:38]} 41. fxg6 {[%emt 0:02:23]} fxg6 {[%emt 0:
00:35]} 42. Nf4 {[%emt 0:00:41]} Bxf4 {[%emt 0:00:00]} 43. Qxf4 {[%emt 0:00:00]
} Qe7 {[%emt 0:00:00]} 44. e5 {[%emt 0:00:00]} Rf8 {[%emt 0:00:00]} 45. Qe4 {
[%emt 0:00:00]} Rf5 {[%emt 0:00:00]} 46. Re1 {[%emt 0:00:00]} Re8 {[%emt 0:00:
00]} 47. d6 {[%emt 0:00:00]} Qd8 {[%emt 0:00:00]} 48. Qb7+ {[%emt 0:00:00]} Kh6
{[%emt 0:00:00]} 49. Qd5 {[%emt 0:00:00]} Qh4 {[%emt 0:00:00]} 50. Qd2+ {
[%emt 0:00:00]} Kh7 {[%emt 0:00:00]} 51. d7 {[%emt 0:00:00]} Rd8 {[%emt 0:00:
20]} 52. Bb5 {[%emt 0:01:06]} Qe7 {[%emt 0:03:37]} 53. e6 {[%emt 0:01:09]} Rf6
{[%emt 0:00:58]} 54. Bc4 {[%emt 0:00:44]} Kg7 {[%emt 0:00:36]} 55. Qe2 {
[%emt 0:01:46]} Kh7 {[%emt 0:00:31]} 56. Qe5 {[%emt 0:00:52]} Rf5 {[%emt 0:00:
37]} 57. Qe4 {[%emt 0:00:57]} Rf6 {[%emt 0:00:35]} 58. Rd1 {[%emt 0:02:06]} Rf5
{[%emt 0:00:30]} 59. Qd3 {[%emt 0:00:47]} Kg7 {[%emt 0:00:43]} 60. Qg3 {
[%emt 0:00:45]} Rf6 {[%emt 0:00:36]} 61. Qe5 {[%emt 0:00:51]} Kh7 {[%emt 0:00:
30]} 62. Qd6 {[%emt 0:00:56]} Qg7 {[%emt 0:01:09]} 63. Qxc5 {[%emt 0:00:57]}
Rf5 {[%emt 0:00:30]} 64. e7 {[%emt 0:01:17]} Rxc5 {[%emt 0:00:48]} 65. exd8=Q {
[%emt 0:00:30]} Rxc4 {[%emt 0:00:30]} 66. Qe8 {[%emt 0:00:44]} Rd4 {[%emt 0:00:
35]} 67. Rxd4 {[%emt 0:00:51]} Qxd4 {[%emt 0:00:30]} 68. d8=Q {[%emt 0:00:33]}
Qa1+ {[%emt 0:00:30]} 69. Kh2 {[%emt 0:00:30]} 1-0

[Event "12th Philadelphia Open"]
[Site "Philadelphia"]
[Date "2018.03.29"]
[Round "3"]
[White "Checa, Nicolas"]
[Black "Mulyar, Michael"]
[Result "1/2-1/2"]
[ECO "A09"]
[WhiteElo "2485"]
[BlackElo "2396"]
[PlyCount "56"]
[EventDate "2018.03.??"]
[EventType "swiss"]
[EventRounds "9"]
[EventCountry "USA"]
[TimeControl "5400+30"]

1. Nf3 d5 2. c4 d4 3. g3 c5 4. Bg2 Nc6 5. O-O e5 6. d3 Bd6 7. e3 Nge7 8. Ng5
O-O 9. Ne4 f5 10. Nxd6 Qxd6 11. exd4 Nxd4 12. f4 Ng6 13. fxe5 Qxe5 14. Nc3 Bd7
15. Nd5 Bc6 16. Re1 Qd6 17. Be3 Rae8 18. b4 b6 19. bxc5 bxc5 20. Bxd4 cxd4 21.
Qd2 f4 22. Rxe8 Rxe8 23. gxf4 Nh4 24. Re1 Rxe1+ 25. Qxe1 Nxg2 26. Kxg2 Bxd5+
27. cxd5 Qxd5+ 28. Kg3 Kf7 1/2-1/2

[Event "12th Philadelphia Open"]
[Site "Philadelphia"]
[Date "2018.03.29"]
[Round "3"]
[White "Gorovets, Andrey"]
[Black "Niemann, Hans"]
[Result "0-1"]
[ECO "A28"]
[WhiteElo "2496"]
[BlackElo "2302"]
[PlyCount "100"]
[EventDate "2018.03.??"]
[EventType "swiss"]
[EventRounds "9"]
[EventCountry "USA"]
[TimeControl "5400+30"]

1. c4 Nf6 2. Nc3 e5 3. Nf3 Nc6 4. e3 Be7 5. a3 d5 6. cxd5 Nxd5 7. Bb5 Nxc3 8.
bxc3 O-O 9. d4 e4 10. Nd2 f5 11. O-O Be6 12. Rb1 Bd6 13. f4 exf3 14. Qxf3 Qh4
15. g3 Qh3 16. Rf2 Ne7 17. Bf1 Qh6 18. Rxb7 Nd5 19. Nb3 Nf6 20. c4 Ne4 21. Rb2
a5 22. c5 Bd5 23. Nd2 Qe6 24. Nxe4 fxe4 25. Qe2 Bxb7 26. Rxb7 Qc8 27. Rb2 Be7
28. Qc4+ Kh8 29. Qd5 Qg4 30. Be2 Qg6 31. Bd2 c6 32. Qh5 Qf6 33. Be1 Rab8 34.
Rxb8 Rxb8 35. Bxa5 Qg5 36. Bd2 Rb1+ 37. Kf2 Qf6+ 38. Kg2 g6 39. Qg4 Rb2 40. Bc3
Rc2 41. d5 Rxc3 42. d6 Bd8 43. Qxe4 Rxc5 44. Qe8+ Kg7 45. Qd7+ Qf7 46. Qxd8 Rc2
47. Qc7 Rxe2+ 48. Kh3 Rxe3 49. d7 Qf5+ 50. Kg2 Re2+ 0-1

[Event "12th Philadelphia Open"]
[Site "Philadelphia"]
[Date "2018.03.29"]
[Round "3"]
[White "Li, Ruifeng"]
[Black "Panchanatham, Vignesh"]
[Result "1/2-1/2"]
[ECO "A01"]
[WhiteElo "2585"]
[BlackElo "2384"]
[PlyCount "76"]
[EventDate "2018.03.??"]
[EventType "swiss"]
[EventRounds "9"]
[EventCountry "USA"]
[TimeControl "5400+30"]

1. b3 d5 2. Bb2 Nf6 3. e3 e6 4. Nf3 Nbd7 5. d4 a5 6. a3 Bd6 7. Bd3 c6 8. Nbd2
O-O 9. Ne5 Qc7 10. f4 b5 11. O-O Ba6 12. Qe2 c5 13. dxc5 Nxc5 14. Bxb5 Bxb5 15.
Qxb5 Rab8 16. Qe2 Rfc8 17. Rac1 Na4 18. Bd4 Nc3 19. Qd3 Na2 20. Rb1 Qxc2 21.
Qa6 Bxa3 22. Qa7 Qc7 23. Qxc7 Rxc7 24. Nec4 dxc4 25. Be5 c3 26. Bxc7 Rc8 27.
Ra1 Rxc7 28. Rxa2 cxd2 29. Rxa3 Rc1 30. Ra1 Rxa1 31. Rxa1 Ne4 32. b4 Nc3 33. b5
Ne2+ 34. Kf2 Nc1 35. Rxa5 Kf8 36. Ra8+ Ke7 37. Ra7+ Kd6 38. Ra8 Kd7 1/2-1/2

[Event "12th Philadelphia Open"]
[Site "Philadelphia"]
[Date "2018.03.29"]
[Round "3"]
[White "Narkeeran, Madhavan"]
[Black "Kretchetov, Alexandre"]
[Result "0-1"]
[ECO "D11"]
[WhiteElo "1909"]
[BlackElo "2244"]
[PlyCount "120"]
[EventDate "2018.03.??"]
[EventType "swiss"]
[EventRounds "9"]
[EventCountry "USA"]
[TimeControl "5400+30"]

1. d4 d5 2. c4 c6 3. Nf3 Nf6 4. e3 g6 5. Bd3 Bg7 6. Qc2 O-O 7. b3 c5 8. Bb2
cxd4 9. exd4 Nc6 10. a3 Nh5 11. c5 Nf4 12. O-O Ne6 13. Qd1 Nxc5 14. Be2 Ne4 15.
Nc3 Nxc3 16. Bxc3 Qd6 17. Qd2 Bf5 18. b4 Rac8 19. b5 Nb8 20. Bb4 Qf6 21. Rac1
Qe6 22. Rfe1 Qd7 23. Bc5 b6 24. Bb4 f6 25. a4 Rfe8 26. Red1 Bf8 27. Bf1 Rxc1
28. Rxc1 Rc8 29. Re1 Be6 30. Qe3 Bf7 31. Qf4 Qc7 32. Qe3 Qb7 33. Qa3 e6 34.
Bxf8 Rxf8 35. h4 Rc8 36. Rc1 Rc7 37. Rxc7 Qxc7 38. Qe3 Nd7 39. g3 e5 40. Bh3 e4
41. Bxd7 Qxd7 42. Nh2 Be6 43. Qf4 Kg7 44. g4 h6 45. g5 hxg5 46. hxg5 Qe7 47.
Ng4 Bxg4 48. Qxg4 fxg5 49. Qg3 Kf6 50. Kg2 Kf5 51. Qb3 Qd6 52. Qh3+ g4 53. Qh7
e3 54. fxe3 Ke4 55. Qxa7 Qf6 56. Qc7 Qf3+ 57. Kh2 Qf2+ 58. Kh1 g3 59. Qe7+ Kf3
60. Qf7+ Ke2 0-1

[Event "12th Philadelphia Open"]
[Site "Philadelphia"]
[Date "2018.03.29"]
[Round "3"]
[White "Popilski, Gil"]
[Black "Saravanan, V."]
[Result "1-0"]
[ECO "B90"]
[WhiteElo "2502"]
[BlackElo "2326"]
[PlyCount "51"]
[EventDate "2018.03.??"]
[EventType "swiss"]
[EventRounds "9"]
[EventCountry "USA"]
[TimeControl "5400+30"]

1. e4 c5 2. Nc3 d6 3. Nf3 Nf6 4. d4 cxd4 5. Nxd4 a6 6. h4 e5 7. Nb3 Be6 8. f4
Be7 9. f5 Bd7 10. g4 Bc6 11. Bg2 h5 12. g5 Ng4 13. Bf3 Nd7 14. Bxg4 hxg4 15.
Qxg4 Qc7 16. Be3 O-O-O 17. O-O-O Kb8 18. Kb1 Rc8 19. Qe2 Nb6 20. Bxb6 Qxb6 21.
Nd2 Qc5 22. Qd3 Rc7 23. Nd5 Bxd5 24. exd5 Qb4 25. Ne4 Rhc8 26. c3 1-0

[Event "12th Philadelphia Open"]
[Site "Philadelphia"]
[Date "2018.03.29"]
[Round "3"]
[White "Shabalov, Alexander"]
[Black "Ippolito, Dean"]
[Result "1-0"]
[ECO "B23"]
[WhiteElo "2568"]
[BlackElo "2342"]
[PlyCount "57"]
[EventDate "2018.03.??"]
[EventType "swiss"]
[EventRounds "9"]
[EventCountry "USA"]
[TimeControl "5400+30"]

1. e4 c5 2. Nc3 d6 3. f4 g6 4. Nf3 Bg7 5. Bc4 Nc6 6. O-O e6 7. d4 cxd4 8. Nb5
Nge7 9. Bb3 O-O 10. Nbxd4 Nxd4 11. Nxd4 d5 12. e5 Nc6 13. Be3 Nxd4 14. Bxd4 b6
15. c3 a5 16. Qd2 Ba6 17. Rf3 Qc7 18. Qe3 Rab8 19. g4 Rfe8 20. Re1 Bc4 21. Bc2
Bxa2 22. f5 b5 23. f6 Bf8 24. h4 b4 25. h5 bxc3 26. hxg6 hxg6 27. bxc3 Red8 28.
Rh3 Rb2 29. Rh2 1-0

[Event "12th Philadelphia Open"]
[Site "Philadelphia"]
[Date "2018.03.29"]
[Round "3"]
[White "Tian, Eddy"]
[Black "Homa, Seth"]
[Result "0-1"]
[ECO "B06"]
[WhiteElo "1921"]
[BlackElo "2247"]
[PlyCount "86"]
[EventDate "2018.03.??"]
[EventType "swiss"]
[EventRounds "9"]
[EventCountry "USA"]
[TimeControl "5400+30"]

1. e4 g6 2. d4 Bg7 3. Nc3 d6 4. Be3 a6 5. f3 b5 6. Qd2 Nd7 7. O-O-O Bb7 8. g4
h6 9. Kb1 Rc8 10. d5 c6 11. dxc6 Bxc6 12. Nd5 Bxd5 13. Qxd5 Qc7 14. Qd2 Ngf6
15. c3 Ne5 16. h4 Qb7 17. Ka1 a5 18. Bd4 Nc6 19. Ne2 b4 20. Bh3 Nxd4 21. cxd4
Nd7 22. Rc1 O-O 23. Qe3 e6 24. f4 Rxc1+ 25. Rxc1 Rc8 26. f5 Rxc1+ 27. Nxc1 exf5
28. gxf5 gxf5 29. Bxf5 Qc7 30. Ne2 Nb6 31. Kb1 Qc4 32. b3 Qb5 33. Kc2 Qc6+ 34.
Kd3 Qb5+ 35. Kd2 a4 36. Qd3 Qa5 37. Qc2 axb3 38. axb3 Bf6 39. h5 Qa1 40. Ke3
Qf1 41. Nf4 Bg5 42. Qh2 Qd1 43. Kf2 Qxb3 0-1

[Event "12th Philadelphia Open"]
[Site "Philadelphia"]
[Date "2018.03.29"]
[Round "3"]
[White "Yanayt, Eugene"]
[Black "Brodsky, David"]
[Result "0-1"]
[ECO "E12"]
[WhiteElo "2127"]
[BlackElo "2409"]
[PlyCount "68"]
[EventDate "2018.03.??"]
[EventType "swiss"]
[EventRounds "9"]
[EventCountry "USA"]
[TimeControl "5400+30"]

1. d4 Nf6 2. c4 e6 3. Nf3 b6 4. a3 Ba6 5. Qc2 Bb7 6. Nc3 c5 7. e4 cxd4 8. Nxd4
Bc5 9. Nb3 Nc6 10. Qe2 O-O 11. Bg5 h6 12. h4 Be7 13. Bf4 a5 14. O-O-O e5 15.
Be3 a4 16. Nd2 Bc5 17. g4 Nd4 18. Bxd4 exd4 19. Nd5 b5 20. g5 Nxd5 21. cxd5 Ra6
22. Qf3 Rb6 23. e5 Qc7 24. Qe4 b4 25. gxh6 Rxh6 26. axb4 Bxb4+ 27. Kb1 Qa5 28.
Qxd4 Qxd5 29. Qxd5 Bxd5 30. Rh2 Rc8 31. Bd3 a3 32. f4 axb2 33. Kxb2 Bc3+ 34.
Kb1 Rb6+ 0-1

[Event "12th Philadelphia Open"]
[Site "Philadelphia"]
[Date "2018.03.29"]
[Round "3"]
[White "Yanovsky, Vlad"]
[Black "Bryant, John Daniel"]
[Result "0-1"]
[ECO "B90"]
[WhiteElo "2112"]
[BlackElo "2461"]
[PlyCount "71"]
[EventDate "2018.03.??"]
[EventType "swiss"]
[EventRounds "9"]
[EventCountry "USA"]
[TimeControl "5400+30"]

1. e4 c5 2. Nf3 d6 3. d4 cxd4 4. Nxd4 Nf6 5. Nc3 a6 6. h3 g6 7. g4 Bg7 8. Bg2
O-O 9. Be3 Nc6 10. O-O h5 11. g5 Nd7 12. f4 Nxd4 13. Bxd4 e5 14. fxe5 Nxe5 15.
h4 Be6 16. Nd5 Bxd5 17. exd5 Qd7 18. b3 Rae8 19. c4 Re7 20. Rf4 Rfe8 21. Qd2
Qc7 22. Raf1 b5 23. cxb5 axb5 24. Rc1 Qb7 25. a4 bxa4 26. bxa4 Qb3 27. Qc3 Qa2
28. a5 Ng4 29. Bxg7 Re2 30. Rxg4 hxg4 31. Bf1 R8e3 32. Bxe2 Qxe2 33. Re1 Qxe1+
34. Qxe1 Rxe1+ 35. Kf2 Rd1 36. Bc3 0-1

[Event "12th Philadelphia Open"]
[Site "Philadelphia"]
[Date "2018.03.29"]
[Round "3"]
[White "Yip, Carissa"]
[Black "Katz, Alexander"]
[Result "1/2-1/2"]
[ECO "B18"]
[WhiteElo "2290"]
[BlackElo "2347"]
[PlyCount "146"]
[EventDate "2018.03.??"]
[EventType "swiss"]
[EventRounds "9"]
[EventCountry "USA"]
[TimeControl "5400+30"]

1. e4 c6 2. d4 d5 3. Nc3 dxe4 4. Nxe4 Bf5 5. Ng3 Bg6 6. Nf3 Nd7 7. h4 h6 8. h5
Bh7 9. Bd3 Bxd3 10. Qxd3 e6 11. Bd2 Ngf6 12. O-O-O Be7 13. Kb1 O-O 14. Qe2 c5
15. c4 Qc7 16. Bc3 Nb6 17. dxc5 Qxc5 18. Rc1 Rfd8 19. Bxf6 Bxf6 20. Ne4 Qe7 21.
Nxf6+ Qxf6 22. g3 Rac8 23. Rh4 Rc5 24. Re4 Rxh5 25. Ne5 Rf5 26. f4 Nd7 27. g4
Rxf4 28. Rxf4 Qxf4 29. Rd1 Nxe5 30. Rxd8+ Kh7 31. Rb8 b6 32. Rb7 Nxg4 33. Rxa7
h5 34. Ra3 Qf5+ 35. Kc1 h4 36. Rc3 g5 37. c5 bxc5 38. a4 Ne5 39. a5 g4 40. a6
Nc6 41. Qg2 g3 42. Qxc6 Qg5+ 43. Kb1 g2 44. Rc1 Qxc1+ 45. Kxc1 g1=Q+ 46. Kc2 h3
47. Qe4+ Kg7 48. Qe5+ f6 49. Qxe6 Qg2+ 50. Kb3 h2 51. Qe7+ Kg6 52. Qe8+ Kf5 53.
Qd7+ Kf4 54. Qc7+ Kf5 55. Qd7+ Kg6 56. Qe8+ Kh7 57. Qf7+ Qg7 58. Qh5+ Qh6 59.
Qf7+ Qg7 60. Qh5+ Qh6 61. Qf7+ Kh8 62. Qe8+ Kg7 63. Qd7+ Kg6 64. Qg4+ Qg5 65.
Qe4+ Qf5 66. Qg2+ Kf7 67. Qb7+ Kg6 68. Qg2+ Qg5 69. Qe4+ f5 70. Qc6+ Qf6 71.
Qg2+ Kf7 72. Qxh2 Qxa6 73. Qh7+ Ke8 1/2-1/2

[Event "12th Philadelphia Open"]
[Site "Philadelphia"]
[Date "2018.03.30"]
[Round "3.1"]
[White "Sevian, Samuel"]
[Black "Balakrishnan, Praveen"]
[Result "1-0"]
[ECO "A46"]
[WhiteElo "2619"]
[BlackElo "2405"]
[PlyCount "103"]
[EventDate "2018.03.??"]
[EventType "swiss"]
[EventRounds "9"]
[EventCountry "USA"]
[TimeControl "5400+30"]
[WhiteClock "0:38:06"]
[BlackClock "0:25:46"]

1. d4 {[%emt 0:00:00]} Nf6 {[%emt 0:00:00]} 2. Nf3 {[%emt 0:00:00]} e6 {
[%emt 0:00:00]} 3. Bg5 {[%emt 0:00:00]} c5 {[%emt 0:00:00]} 4. c3 {[%emt 0:00:
00]} d5 {[%emt 0:00:00]} 5. e3 {[%emt 0:00:00]} Nc6 {[%emt 0:00:00]} 6. Nbd2 {
[%emt 0:00:00]} Bd6 {[%emt 0:00:00]} 7. Bd3 {[%emt 0:00:00]} O-O {[%emt 0:00:
00]} 8. O-O {[%emt 0:00:00]} e5 {[%emt 0:12:33]} 9. e4 {[%emt 0:07:03]} exd4 {
[%emt 0:24:51]} 10. exd5 {[%emt 0:04:49]} Ne7 {[%emt 0:05:22]} 11. Bxf6 {
[%emt 0:13:11]} gxf6 {[%emt 0:00:31]} 12. cxd4 {[%emt 0:08:47]} cxd4 {[%emt 0:
04:11]} 13. Bc4 {[%emt 0:09:03]} Bg4 {[%emt 0:09:45]} 14. h3 {[%emt 0:01:18]}
Bh5 {[%emt 0:01:51]} 15. Qb3 {[%emt 0:02:40]} Qb6 {[%emt 0:10:48]} 16. Qxb6 {
[%emt 0:03:56]} axb6 {[%emt 0:00:30]} 17. Nxd4 {[%emt 0:01:12]} Rfd8 {[%emt 0:
07:21]} 18. Nb5 {[%emt 0:02:54]} Bg6 {[%emt 0:05:45]} 19. Rad1 {[%emt 0:15:21]}
Be5 {[%emt 0:06:32]} 20. Rfe1 {[%emt 0:06:04]} Nxd5 {[%emt 0:04:45]} 21. Nf3
Nb4 {[%emt 0:00:30]} 22. Rxd8+ {[%emt 0:04:44]} Rxd8 {[%emt 0:00:30]} 23. Nxe5
{[%emt 0:00:30]} fxe5 {[%emt 0:01:19]} 24. Rxe5 {[%emt 0:05:49]} Rd2 25. a3 Nd3
{[%emt 0:02:05]} 26. Bxd3 {[%emt 0:01:25]} Bxd3 {[%emt 0:00:40]} 27. b3 {
[%emt 0:00:30]} Bxb5 {[%emt 0:01:55]} 28. Rxb5 {[%emt 0:00:47]} Rd6 {[%emt 0:
00:30]} 29. g4 {[%emt 0:00:30]} f6 {[%emt 0:01:03]} 30. Kg2 {[%emt 0:00:59]}
Kf7 {[%emt 0:00:44]} 31. Kf3 {[%emt 0:00:30]} Re6 {[%emt 0:00:43]} 32. Rd5 {
[%emt 0:01:15]} Rc6 {[%emt 0:01:10]} 33. Ke4 {[%emt 0:00:30]} Kg6 {[%emt 0:00:
51]} 34. f3 {[%emt 0:01:03]} Rc3 {[%emt 0:00:38]} 35. Rb5 {[%emt 0:01:09]} Rc6
{[%emt 0:00:30]} 36. h4 {[%emt 0:00:30]} Re6+ {[%emt 0:00:30]} 37. Kd4 {
[%emt 0:00:30]} Rc6 {[%emt 0:00:31]} 38. a4 {[%emt 0:01:47]} Re6 {[%emt 0:00:
31]} 39. Rd5 {[%emt 0:00:39]} Re1 {[%emt 0:00:30]} 40. Kc4 {[%emt 0:00:30]}
Rc1+ {[%emt 0:00:30]} 41. Kb5 {[%emt 0:00:31]} Rc3 {[%emt 0:00:00]} 42. b4 {
[%emt 0:00:00]} Rxf3 {[%emt 0:00:00]} 43. Kxb6 {[%emt 0:00:00]} Rf4 {[%emt 0:
00:00]} 44. Rb5 {[%emt 0:00:00]} Rxg4 {[%emt 0:00:00]} 45. Kxb7 {[%emt 0:00:00]
} f5 {[%emt 0:00:00]} 46. a5 {[%emt 0:00:00]} f4 {[%emt 0:00:00]} 47. a6 {
[%emt 0:00:00]} f3 {[%emt 0:00:00]} 48. a7 {[%emt 0:00:00]} f2 {[%emt 0:00:00]}
49. a8=Q {[%emt 0:00:00]} f1=Q {[%emt 0:00:00]} 50. Qg8+ {[%emt 0:00:00]} Kh6 {
[%emt 0:00:00]} 51. Rh5+ {[%emt 0:00:00]} Kxh5 {[%emt 0:00:00]} 52. Qxh7# {
[%emt 0:00:00]} 1-0

[Event "12th Philadelphia Open"]
[Site "Philadelphia"]
[Date "2018.03.30"]
[Round "3.2"]
[White "Pedersen, Christian Kyndel"]
[Black "Azarov, Sergei"]
[Result "0-1"]
[ECO "D30"]
[WhiteElo "2405"]
[BlackElo "2570"]
[PlyCount "76"]
[EventDate "2018.03.??"]
[EventType "swiss"]
[EventRounds "9"]
[EventCountry "USA"]
[TimeControl "5400+30"]
[WhiteClock "0:00:01"]
[BlackClock "0:11:12"]

1. d4 {[%emt 0:00:00]} d5 {[%emt 0:00:00]} 2. c4 {[%emt 0:00:00]} e6 {[%emt 0:
00:00]} 3. Nf3 {[%emt 0:00:00]} Nf6 {[%emt 0:00:00]} 4. g3 {[%emt 0:00:00]}
Bb4+ {[%emt 0:00:00]} 5. Bd2 {[%emt 0:00:00]} Be7 {[%emt 0:00:00]} 6. Bg2 {
[%emt 0:00:00]} O-O {[%emt 0:00:00]} 7. O-O {[%emt 0:00:00]} Nbd7 {[%emt 0:00:
00]} 8. Qc2 {[%emt 0:00:00]} Ne4 {[%emt 0:00:00]} 9. Bc1 {[%emt 0:00:00]} c6 {
[%emt 0:00:00]} 10. b3 {[%emt 0:00:00]} a5 {[%emt 0:00:00]} 11. Nbd2 {[%emt 0:
00:00]} f5 {[%emt 0:10:04]} 12. a4 {[%emt 0:00:00]} Bb4 {[%emt 0:11:30]} 13.
Ba3 {[%emt 0:06:40]} Qe7 {[%emt 0:01:50]} 14. Bxb4 {[%emt 0:02:11]} axb4 {
[%emt 0:01:33]} 15. Rac1 {[%emt 0:09:35]} b6 {[%emt 0:03:11]} 16. Ne1 {[%emt 0:
13:48]} Ba6 {[%emt 0:02:31]} 17. Nd3 {[%emt 0:01:52]} Rac8 {[%emt 0:01:45]} 18.
Rfe1 {[%emt 0:19:57]} c5 {[%emt 0:06:33]} 19. e3 {[%emt 0:04:41]} Qf6 {[%emt 0:
16:02]} 20. h4 {[%emt 0:11:02]} cxd4 {[%emt 0:05:19]} 21. exd4 {[%emt 0:17:31]}
dxc4 {[%emt 0:05:43]} 22. Nxe4 {[%emt 0:03:42]} fxe4 {[%emt 0:00:34]} 23. Nxb4
{[%emt 0:00:47]} cxb3 {[%emt 0:00:42]} 24. Qxb3 {[%emt 0:04:09]} Qxf2+ {
[%emt 0:04:00]} 25. Kh1 {[%emt 0:01:45]} Bc4 {[%emt 0:07:57]} 26. Qe3 {[%emt 0:
01:09]} Qxe3 {[%emt 0:02:35]} 27. Rxe3 {[%emt 0:00:30]} Bd5 {[%emt 0:00:36]}
28. Rec3 {[%emt 0:02:02]} Rxc3 {[%emt 0:01:01]} 29. Rxc3 {[%emt 0:00:30]} Ra8 {
[%emt 0:03:33]} 30. Ra3 {[%emt 0:02:37]} Rc8 {[%emt 0:02:29]} 31. Nxd5 {
[%emt 0:00:45]} exd5 {[%emt 0:00:36]} 32. Bh3 {[%emt 0:00:30]} Rc1+ {[%emt 0:
00:51]} 33. Kg2 {[%emt 0:00:30]} Nf6 {[%emt 0:02:37]} 34. Be6+ {[%emt 0:00:30]}
Kf8 {[%emt 0:00:41]} 35. a5 {[%emt 0:00:30]} Rc2+ {[%emt 0:01:41]} 36. Kg1 {
[%emt 0:00:46]} bxa5 {[%emt 0:00:55]} 37. Rxa5 {[%emt 0:00:30]} e3 {[%emt 0:00:
59]} 38. Bxd5 {[%emt 0:00:30]} Rc1+ 0-1

[Event "12th Philadelphia Open"]
[Site "Philadelphia"]
[Date "2018.03.30"]
[Round "3.3"]
[White "Shetty, Atulya"]
[Black "Stripunsky, Alexander"]
[Result "0-1"]
[ECO "A04"]
[WhiteElo "2391"]
[BlackElo "2538"]
[PlyCount "118"]
[EventDate "2018.03.??"]
[EventType "swiss"]
[EventRounds "9"]
[EventCountry "USA"]
[TimeControl "5400+30"]
[WhiteClock "0:00:33"]
[BlackClock "0:07:04"]

1. Nf3 {[%emt 0:00:00]} d6 {[%emt 0:00:00]} 2. c4 {[%emt 0:00:00]} g6 {[%emt 0:
00:00]} 3. g3 {[%emt 0:00:00]} Bg7 {[%emt 0:00:00]} 4. Bg2 {[%emt 0:00:00]} e5
{[%emt 0:00:00]} 5. Nc3 {[%emt 0:00:00]} Nc6 {[%emt 0:00:00]} 6. d3 {[%emt 0:
00:00]} Bg4 {[%emt 0:00:00]} 7. Rb1 {[%emt 0:00:00]} Qc8 {[%emt 0:00:00]} 8. b4
{[%emt 0:03:31]} Bh3 {[%emt 0:10:19]} 9. Bxh3 {[%emt 0:04:59]} Qxh3 {[%emt 0:
00:30]} 10. Nd5 {[%emt 0:03:41]} Qd7 {[%emt 0:00:49]} 11. Qa4 {[%emt 0:06:14]}
Nge7 {[%emt 0:09:07]} 12. Nxe7 {[%emt 0:15:18]} Nxe7 {[%emt 0:02:07]} 13. Qxd7+
{[%emt 0:01:37]} Kxd7 {[%emt 0:00:30]} 14. h4 {[%emt 0:02:54]} h5 {[%emt 0:03:
19]} 15. Bb2 {[%emt 0:05:50]} a6 {[%emt 0:02:48]} 16. Kd2 {[%emt 0:17:38]} b5 {
[%emt 0:01:52]} 17. Rhc1 {[%emt 0:01:46]} f6 {[%emt 0:05:06]} 18. Kd1 {[%emt 0:
06:47]} c6 {[%emt 0:02:32]} 19. Nd2 {[%emt 0:04:17]} Rhb8 {[%emt 0:15:45]} 20.
a3 {[%emt 0:02:05]} a5 {[%emt 0:03:13]} 21. Bc3 {[%emt 0:07:44]} a4 {[%emt 0:
01:50]} 22. e3 {[%emt 0:01:45]} Re8 {[%emt 0:03:10]} 23. Ke2 {[%emt 0:01:57]}
Rac8 {[%emt 0:00:50]} 24. Rd1 {[%emt 0:03:36]} d5 {[%emt 0:01:10]} 25. Rbc1 {
[%emt 0:00:58]} Ke6 {[%emt 0:04:27]} 26. Nf3 {[%emt 0:01:24]} Nf5 {[%emt 0:02:
09]} 27. Bd2 {[%emt 0:03:08]} dxc4 {[%emt 0:06:07]} 28. dxc4 {[%emt 0:00:30]}
Red8 {[%emt 0:00:54]} 29. cxb5 {[%emt 0:01:54]} cxb5 {[%emt 0:00:30]} 30. Rxc8
{[%emt 0:02:22]} Rxc8 {[%emt 0:00:30]} 31. Rc1 {[%emt 0:00:54]} Rxc1 {[%emt 0:
02:23]} 32. Bxc1 {[%emt 0:00:30]} e4 {[%emt 0:06:36]} 33. Nd2 {[%emt 0:00:30]}
Kd5 {[%emt 0:01:27]} 34. f3 {[%emt 0:01:28]} Nd6 {[%emt 0:04:26]} 35. Bb2 {
[%emt 0:00:30]} exf3+ {[%emt 0:02:36]} 36. Kxf3 {[%emt 0:00:30]} Ke6 {[%emt 0:
00:38]} 37. Bd4 {[%emt 0:01:07]} Bh6 {[%emt 0:00:33]} 38. Bc5 {[%emt 0:01:12]}
f5 {[%emt 0:02:43]} 39. Bxd6 {[%emt 0:00:50]} Kxd6 {[%emt 0:00:30]} 40. Ke2 {
[%emt 0:00:30]} Bg7 {[%emt 0:03:29]} 41. Nf3 {[%emt 0:00:00]} Kd5 {[%emt 0:00:
00]} 42. Kd3 {[%emt 0:00:00]} Bb2 {[%emt 0:00:00]} 43. Nd4 {[%emt 0:00:00]}
Bxa3 {[%emt 0:00:00]} 44. Kc3 {[%emt 0:00:00]} Bc1 {[%emt 0:00:00]} 45. Kd3 {
[%emt 0:00:00]} Ba3 {[%emt 0:00:00]} 46. Kc3 {[%emt 0:00:00]} Ke4 {[%emt 0:00:
00]} 47. Nxb5 {[%emt 0:00:00]} Bxb4+ {[%emt 0:00:00]} 48. Kxb4 {[%emt 0:00:00]}
Kxe3 {[%emt 0:00:00]} 49. Kxa4 {[%emt 0:00:00]} Kf3 {[%emt 0:00:00]} 50. Kb3 {
[%emt 0:00:00]} Kxg3 {[%emt 0:00:00]} 51. Kc2 {[%emt 0:00:00]} Kxh4 {[%emt 0:
00:00]} 52. Kd2 {[%emt 0:00:00]} Kg3 {[%emt 0:00:00]} 53. Nd4 {[%emt 0:01:11]}
h4 {[%emt 0:00:00]} 54. Ne2+ {[%emt 0:03:00]} Kf2 {[%emt 0:03:01]} 55. Nf4 {
[%emt 0:00:35]} g5 {[%emt 0:00:37]} 56. Nd3+ {[%emt 0:01:30]} Kg3 {[%emt 0:02:
27]} 57. Ke2 {[%emt 0:01:23]} h3 {[%emt 0:00:39]} 58. Kf1 {[%emt 0:00:52]} h2 {
[%emt 0:00:45]} 59. Nf2 {[%emt 0:00:30]} Kf3 {[%emt 0:00:32]} 0-1